[Event "EUSA-ch Open 2019"]
[Site "Budapest"]
[Date "2019.07.26"]
[Round "8.5"]
[White "Deaconu, Mihai-Ionut"]
[Black "Harutyunian, Tigran K."]
[Result "0-1"]
[ECO "E09"]
[WhiteElo "1957"]
[BlackElo "2539"]
[Annotator "ChessBase"]
[PlyCount "90"]
[EventDate "2019.07.23"]
[EventType "team-tourn"]
[EventCountry "HUN"]
[SourceTitle "playchess.com"]
[Source "ChessBase"]
[SourceQuality "1"]
[TimeControl "1500+10"]

1. d4 {[%emt 0:00:00]} Nf6 {[%emt 0:00:00]} 2. Nf3 {[%emt 0:00:00]} e6 {[%emt 0:00:00]} 3. c4 {[%emt 0:00:00]} d5 {[%emt 0:00:04]} 4. g3 {[%emt 0:00:00]} Be7 {[%emt 0:00:35]} 5. Bg2 {[%emt 0:00:00]} O-O {[%emt 0:00:03]} 6. O-O {[%emt 0:00:11]} Nbd7 {[%emt 0:00:01]} 7. Qc2 {[%emt 0:00:29]} c6 {[%emt 0:00:03]} 8. Nbd2 {[%emt 0:00:44]} b6 {[%emt 0:00:07]} 9. Re1 {[%emt 0:00:36]} Bb7 {[%emt 0:00:10]} 10. e4 {[%emt 0:00:30]} dxc4 {[%emt 0:00:09]} 11. Nxc4 {[%emt 0:00:10]} c5 {[%emt 0:00:06]} 12. dxc5 {[%emt 0:02:45]} Nxc5 {[%emt 0:02:11]} 13. e5 {[%emt 0:00:45]} Nd5 {[%emt 0:00:23]} 14. a3 {[%emt 0:01:21]} Rc8 {[%emt 0:00:39]} 15. b4 {[%emt 0:00:52]} Nd7 {[%emt 0:00:34]} 16. Qb3 {[%emt 0:00:07]} Qc7 {[%emt 0:00:45]} 17. Ncd2 {[%emt 0:01:17]} Nc3 {[%emt 0:02:14]} 18. Bb2 {[%emt 0:00:44]} Bd5 {[%emt 0:00:05]} 19. Qxc3 {[%emt 0:00:01]} Qxc3 20. Bxc3 Rxc3 {[%emt 0:00:05]} 21. Ne4 {[%emt 0:04:10]} Rc2 {[%emt 0:00:07]} 22. Bf1 {[%emt 0:00:08]} f5 {[%emt 0:02:31]} 23. Ned2 {[%emt 0:05:24]} a5 {[%emt 0:01:26]} 24. Bb5 {[%emt 0:00:28]} Rd8 {[%emt 0:00:32]} 25. Ba4 {[%emt 0:00:36]} Rc3 {[%emt 0:00:17]} 26. Nd4 {[%emt 0:00:50]} axb4 {[%emt 0:00:55]} 27. axb4 {[%emt 0:00:59]} Bxb4 {[%emt 0:00:47]} 28. Reb1 {[%emt 0:00:36]} Bc5 {[%emt 0:00:24]} 29. Bxd7 {[%emt 0:01:59]} Bxd4 {[%emt 0:00:38]} 30. Ba4 {[%emt 0:00:54]} Rd3 {[%emt 0:00:11]} 31. Nb3 {[%emt 0:00:16]} Bxb3 {[%emt 0:00:19]} 32. Bxb3 {[%emt 0:00:09]} Rxb3 {[%emt 0:00:06]} 33. Rxb3 {[%emt 0:00:07]} Bxa1 {[%emt 0:00:02]} 34. Rxb6 {[%emt 0:00:02]} Bxe5 {[%emt 0:00:29]} 35. Rxe6 {[%emt 0:00:03]} Bf6 {[%emt 0:00:03]} 36. h4 {[%emt 0:00:09]} Kf7 {[%emt 0:00:02]} 37. Ra6 {[%emt 0:00:02]} Rd2 {[%emt 0:00:09]} 38. Ra5 {[%emt 0:00:12]} f4 {[%emt 0:00:11]} 39. Rf5 {[%emt 0:00:16]} fxg3 {[%emt 0:00:08]} 40. fxg3 {[%emt 0:00:02]} Ke6 {[%emt 0:00:06]} 41. Rf3 {[%emt 0:00:09]} Ke5 {[%emt 0:00:07]} 42. h5 {[%emt 0:00:12]} h6 {[%emt 0:00:06]} 43. Kf1 {[%emt 0:00:12]} Ke4 {[%emt 0:00:25]} 44. Ra3 {[%emt 0:00:12]} Rd3 {[%emt 0:00:07]} 45. Ra4+ {[%emt 0:00:20]} Kf3 {[%emt 0:00:02]} 0-1

[Event "EUSA-ch Open 2019"]
[Site "Budapest"]
[Date "2019.07.26"]
[Round "8.6"]
[White "Petrosyan, Tigran S."]
[Black "Stamatopoulos, Apostolos"]
[Result "1-0"]
[ECO "A05"]
[WhiteElo "2448"]
[BlackElo "1782"]
[Annotator "NA RC"]
[PlyCount "138"]
[EventDate "2019.07.23"]
[EventType "team-tourn"]
[EventCountry "HUN"]
[SourceTitle "playchess.com"]
[Source "ChessBase"]
[SourceQuality "1"]
[TimeControl "1500+10"]

1. Nf3 {[%emt 0:00:00]} Nf6 {[%emt 0:00:00]} 2. c4 {[%emt 0:00:00]} e6 {[%emt 0:00:01]} 3. Nc3 {[%emt 0:00:00]} c5 {[%emt 0:00:10]} 4. g3 {[%emt 0:00:00]} Nc6 {[%emt 0:00:11]} 5. Bg2 {[%emt 0:00:00]} Be7 {[%emt 0:00:06]} 6. O-O {[%emt 0:00:03]} O-O {[%emt 0:00:05]} 7. d4 {[%emt 0:00:02]} cxd4 {[%emt 0:00:06]} 8. Nxd4 {[%emt 0:00:01]} Qb6 {[%emt 0:00:13]} 9. Nb3 {[%emt 0:00:34]} d6 {[%emt 0:00:38]} 10. Be3 {[%emt 0:02:12]} Qc7 {[%emt 0:01:34]} 11. Rc1 {[%emt 0:00:10]} Ng4 {[%emt 0:02:15]} 12. Bf4 {[%emt 0:00:26]} a6 {[%emt 0:00:50]} 13. Nd5 {[%emt 0:00:47]} exd5 {[%emt 0:01:13]} 14. cxd5 {[%emt 0:00:01]} Nge5 {[%emt 0:01:30]} 15. Bxe5 {[%emt 0:02:21]} dxe5 {[%emt 0:00:05]} 16. dxc6 {[%emt 0:00:01]} b6 {[%emt 0:00:16]} 17. Qc2 {[%emt 0:00:46]} Be6 {[%emt 0:00:28]} 18. Rfd1 {[%emt 0:00:27]} Rfd8 {[%emt 0:00:10]} 19. Rd3 {[%emt 0:01:27]} f5 {[%emt 0:01:00]} 20. e4 {[%emt 0:02:07]} g6 {[%emt 0:00:50]} 21. Bh3 {[%emt 0:01:30]} Bg5 {[%emt 0:05:06]} 22. Rcd1 {[%emt 0:02:16]} Rxd3 {[%emt 0:01:35]} 23. Rxd3 {[%emt 0:00:02]} Kg7 {[%emt 0:00:57]} 24. Rd1 {[%emt 0:05:37]} Rc8 {[%emt 0:01:00]} 25. exf5 {[%emt 0:00:10]} gxf5 {[%emt 0:00:01]} 26. Bxf5 {[%emt 0:00:18]} Qxc6 {[%emt 0:00:03]} 27. Qxc6 {[%emt 0:00:35]} Rxc6 {[%emt 0:00:02]} 28. Bxe6 {[%emt 0:00:00]} Rxe6 {[%emt 0:00:00]} 29. Rd7+ {[%emt 0:00:40]} Kg6 {[%emt 0:00:02]} 30. Nd2 {[%emt 0:01:05]} Bxd2 {[%emt 0:02:17]} 31. Rxd2 {[%emt 0:00:01]} Rc6 {[%emt 0:00:13]} 32. Kg2 {[%emt 0:00:19]} Kf5 {[%emt 0:00:16]} 33. Kf3 {[%emt 0:00:03]} h5 {[%emt 0:00:37]} 34. Ke3 {[%emt 0:00:16]} h4 {[%emt 0:00:41]} 35. f3 {[%emt 0:01:45]} hxg3 {[%emt 0:00:18]} 36. hxg3 {[%emt 0:00:01]} a5 {[%emt 0:02:19]} 37. Rh2 {[%emt 0:01:02]} Rg6 {[%emt 0:02:39]} 38. Rh5+ {[%emt 0:00:55]} Ke6 {[%emt 0:00:04]} 39. Ke4 {[%emt 0:01:36]} Rxg3 {[%emt 0:00:04]} 40. Rxe5+ {[%emt 0:00:18]} Kd6 {[%emt 0:00:23]} 41. Rb5 {[%emt 0:00:02]} Kc6 {[%emt 0:00:06]} 42. a4 {[%emt 0:00:01]} Rg6 {[%emt 0:00:55]} 43. f4 {[%emt 0:00:11]} Kd7 {[%emt 0:00:07]} 44. b3 {[%emt 0:00:39]} Ke7 {[%emt 0:00:19]} 45. Rh5 {[%emt 0:00:32]} Rg3 {[%emt 0:00:07]} 46. Rb5 {[%emt 0:00:15]} Rg6 {[%emt 0:00:01]} 47. Re5+ {[%emt 0:00:10]} Kf7 {[%emt 0:00:18]} 48. Rf5+ {[%emt 0:00:05]} Ke7 {[%emt 0:00:08]} 49. Rg5 {[%emt 0:00:16]} Rh6 {[%emt 0:00:24]} 50. Kd4 {[%emt 0:00:32]} Rh3 {[%emt 0:00:09]} 51. Kc4 {[%emt 0:00:15]} Rf3 {[%emt 0:00:02]} 52. Re5+ {[%emt 0:00:04]} Kd6 {[%emt 0:00:12]} 53. Re4 {[%emt 0:00:10]} Kc6 {[%emt 0:00:18]} 54. Re6+ {[%emt 0:00:08]} Kc7 {[%emt 0:00:07]} 55. Rf6 {[%emt 0:00:01]} Kb7 {[%emt 0:00:27]} 56. Rf8 {[%emt 0:00:12]} Kc6 {[%emt 0:00:05]} 57. Rf7 {[%emt 0:00:31]} Kd6 {[%emt 0:00:14]} 58. Rf6+ {[%emt 0:00:09]} Kc7 {[%emt 0:00:02]} 59. f5 {[%emt 0:00:04]} Rf4+ {[%emt 0:00:09]} 60. Kd5 {[%emt 0:00:01]} Rb4 {[%emt 0:00:08]} 61. Rf7+ {[%emt 0:00:01]} Kc8 {[%emt 0:00:21]} 62. Kd6 {[%emt 0:00:27]} Rxb3 {[%emt 0:00:04]} 63. Rf8+ {[%emt 0:00:02]} Kb7 {[%emt 0:00:01]} 64. f6 {[%emt 0:00:01]} b5 {[%emt 0:00:19]} 65. Re8 {[%emt 0:00:16]} Rf3 {[%emt 0:00:12]} 66. Ke7 {[%emt 0:00:21]} bxa4 {[%emt 0:00:09]} 67. f7 {[%emt 0:00:01]} Re3+ {[%emt 0:00:03]} 68. Kd6 {[%emt 0:00:04]} Rd3+ {[%emt 0:00:24]} 69. Kc5 {[%emt 0:00:03]} Rc3+ 1-0

[Event "EUSA-ch Open 2019"]
[Site "Budapest"]
[Date "2019.07.28"]
[Round "9.1"]
[White "Kalogeris, Ioannis"]
[Black "Chigaev, Maksim"]
[Result "1-0"]
[ECO "A49"]
[WhiteElo "2376"]
[BlackElo "2640"]
[Annotator "RC"]
[PlyCount "95"]
[EventDate "2019.07.23"]
[EventType "team-tourn"]
[EventCountry "HUN"]
[SourceTitle "playchess.com"]
[Source "ChessBase"]
[SourceQuality "1"]
[TimeControl "1500+10"]

1. d4 {[%emt 0:04:46]} Nf6 {[%emt 0:00:00]} 2. Nf3 {[%emt 0:00:02]} g6 {[%emt 0:00:00]} 3. g3 {[%emt 0:00:05]} Bg7 {[%emt 0:00:00]} 4. Bg2 {[%emt 0:00:01]} O-O {[%emt 0:00:00]} 5. O-O {[%emt 0:00:01]} d6 {[%emt 0:00:00]} 6. a4 {[%emt 0:00:10]} Na6 {[%emt 0:00:11]} 7. Re1 {[%emt 0:01:02]} c5 {[%emt 0:00:03]} 8. d5 {[%emt 0:00:21]} Nc7 {[%emt 0:00:14]} 9. e4 {[%emt 0:00:12]} Bg4 {[%emt 0:00:05]} 10. h3 {[%emt 0:00:04]} Bxf3 {[%emt 0:00:03]} 11. Qxf3 {[%emt 0:00:03]} Nd7 {[%emt 0:00:02]} 12. Qb3 {[%emt 0:00:23]} Rb8 {[%emt 0:00:01]} 13. Na3 {[%emt 0:01:06]} b6 {[%emt 0:01:08]} 14. f4 {[%emt 0:01:28]} a6 {[%emt 0:00:44]} 15. Nc4 {[%emt 0:00:57]} Nf6 {[%emt 0:09:24]} 16. Be3 {[%emt 0:01:27]} Nd7 {[%emt 0:03:56]} 17. c3 {[%emt 0:01:09]} Kh8 {[%emt 0:02:06]} 18. Bf2 {[%emt 0:02:22]} f6 {[%emt 0:00:11]} 19. h4 {[%emt 0:00:13]} Qe8 {[%emt 0:00:06]} 20. Qd1 {[%emt 0:00:10]} Qf7 {[%emt 0:00:30]} 21. h5 {[%emt 0:01:21]} g5 {[%emt 0:00:06]} 22. Bh3 {[%emt 0:00:13]} Qe8 {[%emt 0:00:36]} 23. Qf3 {[%emt 0:02:03]} Bh6 {[%emt 0:00:36]} 24. Ne3 {[%emt 0:00:06]} Rg8 {[%emt 0:01:00]} 25. Nf5 {[%emt 0:00:37]} Bf8 {[%emt 0:00:06]} 26. Kh2 {[%emt 0:00:36]} b5 {[%emt 0:00:05]} 27. a5 {[%emt 0:00:37]} b4 {[%emt 0:01:35]} 28. c4 {[%emt 0:00:16]} Qf7 {[%emt 0:02:05]} 29. Rad1 {[%emt 0:00:48]} b3 {[%emt 0:00:15]} 30. Rd3 {[%emt 0:01:21]} Rb4 {[%emt 0:00:08]} 31. Rc3 {[%emt 0:00:40]} h6 {[%emt 0:01:58]} 32. Ne3 {[%emt 0:00:34]} Qe8 {[%emt 0:00:53]} 33. Bf5 {[%emt 0:01:17]} Bg7 {[%emt 0:00:14]} 34. Bg6 {[%emt 0:01:26]} Qd8 {[%emt 0:00:20]} 35. Nf5 {[%emt 0:00:02]} Nf8 {[%emt 0:00:14]} 36. Bf7 {[%emt 0:00:16]} Nd7 {[%emt 0:01:03]} 37. Bxg8 {[%emt 0:00:50]} Kxg8 {[%emt 0:00:00]} 38. Ra1 {[%emt 0:00:14]} Bf8 {[%emt 0:00:14]} 39. Ra3 {[%emt 0:00:02]} Ne8 {[%emt 0:00:04]} 40. Qd3 {[%emt 0:00:32]} Kh8 {[%emt 0:00:29]} 41. Rcxb3 {[%emt 0:00:03]} Ng7 {[%emt 0:00:27]} 42. e5 {[%emt 0:01:16]} Qe8 {[%emt 0:00:12]} 43. e6 {[%emt 0:00:33]} Qxh5+ {[%emt 0:00:21]} 44. Kg2 {[%emt 0:00:02]} Nb8 {[%emt 0:00:14]} 45. Rxb4 {[%emt 0:00:01]} cxb4 {[%emt 0:00:01]} 46. Rb3 {[%emt 0:00:05]} gxf4 {[%emt 0:00:24]} 47. Nxg7 {[%emt 0:00:09]} Kxg7 {[%emt 0:00:05]} 48. Rxb4 {[%emt 0:00:02]} 1-0

[Event "EUSA-ch Open 2019"]
[Site "Budapest"]
[Date "2019.07.28"]
[Round "9.3"]
[White "Egri, Laszlo Jr."]
[Black "Shevchenko, Kirill"]
[Result "1/2-1/2"]
[ECO "E67"]
[WhiteElo "2254"]
[BlackElo "2536"]
[Annotator "ChessBase"]
[PlyCount "142"]
[EventDate "2019.07.23"]
[EventType "team-tourn"]
[EventCountry "HUN"]
[SourceTitle "playchess.com"]
[Source "ChessBase"]
[SourceQuality "1"]
[TimeControl "1500+10"]

1. Nf3 {[%emt 0:00:00]} Nf6 {[%emt 0:00:00]} 2. c4 {[%emt 0:00:00]} g6 {[%emt 0:00:00]} 3. g3 {[%emt 0:00:00]} Bg7 {[%emt 0:00:00]} 4. Bg2 {[%emt 0:00:00]} O-O {[%emt 0:00:00]} 5. O-O {[%emt 0:00:00]} d6 {[%emt 0:00:00]} 6. d4 {[%emt 0:00:00]} Nbd7 {[%emt 0:00:02]} 7. Nc3 {[%emt 0:00:03]} e5 {[%emt 0:00:01]} 8. h3 {[%emt 0:00:02]} Re8 {[%emt 0:00:42]} 9. e4 {[%emt 0:00:19]} c6 {[%emt 0:01:30]} 10. Re1 {[%emt 0:00:02]} exd4 {[%emt 0:00:44]} 11. Nxd4 {[%emt 0:00:01]} Qb6 {[%emt 0:00:02]} 12. Nb3 {[%emt 0:01:51]} Ne5 {[%emt 0:08:04]} 13. c5 {[%emt 0:03:57]} dxc5 {[%emt 0:00:19]} 14. Be3 {[%emt 0:00:01]} Be6 {[%emt 0:02:59]} 15. Na4 {[%emt 0:06:28]} Qc7 {[%emt 0:02:59]} 16. Naxc5 {[%emt 0:00:25]} Rad8 {[%emt 0:03:03]} 17. Nxe6 {[%emt 0:00:13]} Rxe6 {[%emt 0:00:01]} 18. Qc2 {[%emt 0:01:04]} Nd3 {[%emt 0:00:57]} 19. Red1 {[%emt 0:00:46]} Red6 {[%emt 0:00:27]} 20. Bd4 {[%emt 0:05:35]} Nh5 {[%emt 0:02:22]} 21. Rxd3 {[%emt 0:03:15]} Bxd4 {[%emt 0:00:02]} 22. Nxd4 {[%emt 0:00:17]} Rxd4 {[%emt 0:00:01]} 23. Rad1 {[%emt 0:00:01]} Qb6 {[%emt 0:00:33]} 24. Rxd4 {[%emt 0:01:18]} Rxd4 {[%emt 0:00:01]} 25. Rxd4 {[%emt 0:00:36]} Qxd4 {[%emt 0:00:01]} 26. Kh2 {[%emt 0:00:01]} g5 {[%emt 0:01:20]} 27. Qe2 {[%emt 0:00:11]} Ng7 {[%emt 0:00:37]} 28. e5 {[%emt 0:00:26]} Ne6 {[%emt 0:00:20]} 29. Be4 {[%emt 0:00:16]} h6 {[%emt 0:01:03]} 30. Bf5 {[%emt 0:00:17]} Ng7 {[%emt 0:00:05]} 31. Bd3 {[%emt 0:00:20]} Kf8 {[%emt 0:00:20]} 32. Bc4 {[%emt 0:00:33]} Ke7 {[%emt 0:00:06]} 33. Bb3 {[%emt 0:00:28]} Ne6 {[%emt 0:00:44]} 34. Kg1 {[%emt 0:00:15]} Nd8 {[%emt 0:00:31]} 35. Qh5 {[%emt 0:00:46]} Qxb2 {[%emt 0:00:15]} 36. e6 {[%emt 0:00:43]} Qb1+ {[%emt 0:00:29]} 37. Kh2 {[%emt 0:00:13]} Qf5 {[%emt 0:00:10]} 38. Qxh6 {[%emt 0:00:15]} Qxf2+ {[%emt 0:00:10]} 39. Kh1 {[%emt 0:00:01]} Qf1+ {[%emt 0:00:01]} 40. Kh2 {[%emt 0:00:01]} Qf2+ {[%emt 0:00:01]} 41. Kh1 {[%emt 0:00:01]} Qxg3 {[%emt 0:00:19]} 42. exf7 {[%emt 0:00:04]} Nxf7 {[%emt 0:00:12]} 43. Qe6+ {[%emt 0:00:02]} Kd8 {[%emt 0:00:02]} 44. Qxf7 {[%emt 0:00:05]} Qxh3+ {[%emt 0:00:02]} 45. Kg1 {[%emt 0:00:01]} Qd7 {[%emt 0:00:12]} 46. Qg8+ {[%emt 0:00:09]} Kc7 {[%emt 0:00:03]} 47. Qxg5 {[%emt 0:00:02]} Qd4+ {[%emt 0:00:09]} 48. Kf1 {[%emt 0:00:13]} b5 {[%emt 0:00:02]} 49. Qg3+ {[%emt 0:00:44]} Kb7 {[%emt 0:00:06]} 50. Ke2 {[%emt 0:00:24]} a5 {[%emt 0:00:11]} 51. Qd3 {[%emt 0:00:15]} Qb2+ {[%emt 0:00:30]} 52. Qd2 {[%emt 0:00:01]} Qe5+ {[%emt 0:00:02]} 53. Qe3 {[%emt 0:00:05]} Qb2+ {[%emt 0:00:05]} 54. Qd2 {[%emt 0:00:07]} Qe5+ {[%emt 0:00:02]} 55. Qe3 {[%emt 0:00:09]} Qh2+ {[%emt 0:00:04]} 56. Qf2 {[%emt 0:00:11]} Qd6 {[%emt 0:00:05]} 57. Qf7+ {[%emt 0:00:06]} Ka6 {[%emt 0:00:08]} 58. Qe6 {[%emt 0:00:11]} Qc7 {[%emt 0:00:24]} 59. Bd5 {[%emt 0:00:29]} Kb6 {[%emt 0:00:01]} 60. Bf3 {[%emt 0:00:22]} a4 {[%emt 0:00:40]} 61. Kd3 {[%emt 0:00:08]} b4 {[%emt 0:00:34]} 62. Kc2 {[%emt 0:00:19]} Qh2+ {[%emt 0:00:06]} 63. Kd3 {[%emt 0:00:07]} Qc7 {[%emt 0:00:01]} 64. Kc2 {[%emt 0:00:03]} Kb5 {[%emt 0:00:18]} 65. Be2+ {[%emt 0:00:07]} Kb6 {[%emt 0:00:06]} 66. Bf3 {[%emt 0:00:01]} Kb7 {[%emt 0:00:17]} 67. Qc4 {[%emt 0:00:15]} Qh2+ {[%emt 0:00:13]} 68. Kd3 {[%emt 0:00:04]} Qd6+ {[%emt 0:00:06]} 69. Kc2 {[%emt 0:00:02]} Kb6 {[%emt 0:00:07]} 70. Be2 {[%emt 0:00:17]} Qg6+ {[%emt 0:00:18]} 71. Qd3 {[%emt 0:00:11]} b3+ {[%emt 0:00:09]} 1/2-1/2

[Event "EUSA-ch Open 2019"]
[Site "Budapest"]
[Date "2019.07.28"]
[Round "9.4"]
[White "Golubka, Petro"]
[Black "Voros, Gellert"]
[Result "1-0"]
[ECO "A21"]
[WhiteElo "2483"]
[BlackElo "2164"]
[Annotator "ChessBase"]
[PlyCount "93"]
[EventDate "2019.07.23"]
[EventType "team-tourn"]
[EventCountry "HUN"]
[SourceTitle "playchess.com"]
[Source "ChessBase"]
[SourceQuality "1"]
[TimeControl "1500+10"]

1. d4 {[%emt 0:00:00]} d5 {[%emt 0:00:00]} 2. c4 {[%emt 0:00:00]} c6 {[%emt 0:00:00]} 3. Nc3 {[%emt 0:00:00]} e5 {[%emt 0:00:05]} 4. dxe5 {[%emt 0:01:16]} d4 {[%emt 0:00:02]} 5. Nb1 {[%emt 0:00:01]} Qa5+ {[%emt 0:01:32]} 6. Bd2 {[%emt 0:00:50]} Qxe5 {[%emt 0:00:08]} 7. Nf3 {[%emt 0:00:02]} Qd6 {[%emt 0:00:05]} 8. g3 {[%emt 0:00:02]} Be6 {[%emt 0:01:54]} 9. Bf4 {[%emt 0:01:27]} Qb4+ {[%emt 0:00:20]} 10. Nbd2 {[%emt 0:00:01]} c5 {[%emt 0:00:31]} 11. Bg2 {[%emt 0:01:27]} Nc6 {[%emt 0:01:04]} 12. O-O {[%emt 0:00:20]} Nf6 {[%emt 0:00:35]} 13. a3 {[%emt 0:00:15]} Qb6 {[%emt 0:00:23]} 14. Ng5 {[%emt 0:00:31]} Bf5 {[%emt 0:04:27]} 15. Nge4 {[%emt 0:01:06]} Nxe4 {[%emt 0:00:50]} 16. Nxe4 {[%emt 0:00:03]} Rd8 {[%emt 0:00:40]} 17. Qa4 {[%emt 0:00:42]} Be7 {[%emt 0:01:49]} 18. Qb5 {[%emt 0:00:09]} O-O {[%emt 0:00:26]} 19. Qxb6 {[%emt 0:00:03]} axb6 {[%emt 0:00:03]} 20. Bc7 {[%emt 0:00:09]} Rc8 {[%emt 0:00:12]} 21. Bxb6 {[%emt 0:01:04]} Ne5 {[%emt 0:00:05]} 22. b3 {[%emt 0:00:10]} Be6 {[%emt 0:01:39]} 23. a4 {[%emt 0:01:32]} Nd7 {[%emt 0:00:16]} 24. a5 {[%emt 0:00:09]} Nxb6 {[%emt 0:00:51]} 25. axb6 {[%emt 0:00:01]} f5 {[%emt 0:02:51]} 26. Nd2 {[%emt 0:00:11]} Bd8 {[%emt 0:00:44]} 27. Bxb7 {[%emt 0:02:36]} Rb8 {[%emt 0:00:04]} 28. Bd5 {[%emt 0:01:02]} Rxb6 {[%emt 0:01:09]} 29. Bxe6+ {[%emt 0:01:38]} Rxe6 {[%emt 0:00:02]} 30. Rfe1 {[%emt 0:00:01]} f4 {[%emt 0:01:04]} 31. Ra8 {[%emt 0:01:39]} fxg3 {[%emt 0:00:19]} 32. hxg3 {[%emt 0:00:08]} Bg5 {[%emt 0:01:00]} 33. Rxf8+ {[%emt 0:00:05]} Kxf8 {[%emt 0:00:01]} 34. Nf3 {[%emt 0:00:27]} Be7 {[%emt 0:00:04]} 35. Kf1 {[%emt 0:00:22]} Rb6 {[%emt 0:00:06]} 36. Rb1 {[%emt 0:00:02]} Rh6 {[%emt 0:00:33]} 37. Kg2 {[%emt 0:00:03]} Re6 {[%emt 0:00:09]} 38. Rb2 {[%emt 0:00:23]} Bf6 {[%emt 0:00:33]} 39. Ra2 {[%emt 0:00:07]} Kf7 {[%emt 0:01:08]} 40. Ne1 {[%emt 0:00:14]} Rb6 {[%emt 0:00:07]} 41. Ra3 {[%emt 0:00:05]} Be7 {[%emt 0:00:28]} 42. Nd3 {[%emt 0:00:04]} Bd6 {[%emt 0:00:03]} 43. Ra7+ {[%emt 0:00:11]} Kf6 {[%emt 0:00:22]} 44. b4 {[%emt 0:00:46]} Bb8 {[%emt 0:00:14]} 45. bxc5 {[%emt 0:00:34]} Bxa7 {[%emt 0:00:06]} 46. cxb6 {[%emt 0:00:02]} Bxb6 {[%emt 0:00:02]} 47. Kf3 {[%emt 0:00:01]} 1-0

[Event "EUSA-ch Open 2019"]
[Site "Budapest"]
[Date "2019.07.28"]
[Round "9.5"]
[White "Harutyunian, Tigran K."]
[Black "Smolka, Marcin"]
[Result "1-0"]
[ECO "A04"]
[WhiteElo "2539"]
[BlackElo "2178"]
[Annotator "ChessBase"]
[PlyCount "57"]
[EventDate "2019.07.23"]
[EventType "team-tourn"]
[EventCountry "HUN"]
[SourceTitle "playchess.com"]
[Source "ChessBase"]
[SourceQuality "1"]
[TimeControl "1500+10"]

1. Nf3 {[%emt 0:00:00]} c5 {[%emt 0:03:02]} 2. c4 {[%emt 0:00:11]} Nc6 {[%emt 0:00:04]} 3. Nc3 {[%emt 0:00:21]} e5 {[%emt 0:01:13]} 4. e3 {[%emt 0:00:05]} d6 {[%emt 0:00:13]} 5. d4 {[%emt 0:00:22]} g6 {[%emt 0:02:25]} 6. dxc5 {[%emt 0:00:24]} dxc5 {[%emt 0:00:03]} 7. Qxd8+ {[%emt 0:00:02]} Kxd8 {[%emt 0:00:08]} 8. Be2 {[%emt 0:01:01]} f6 {[%emt 0:01:46]} 9. O-O {[%emt 0:00:16]} Ke7 {[%emt 0:00:08]} 10. b3 {[%emt 0:01:19]} Kf7 {[%emt 0:00:49]} 11. Bb2 {[%emt 0:00:01]} Be6 {[%emt 0:00:21]} 12. Rad1 {[%emt 0:00:25]} Rc8 {[%emt 0:01:10]} 13. Nd2 {[%emt 0:00:25]} Nh6 {[%emt 0:00:56]} 14. Nde4 {[%emt 0:00:12]} Be7 {[%emt 0:00:39]} 15. Nd5 {[%emt 0:01:22]} b6 {[%emt 0:03:13]} 16. f4 {[%emt 0:00:11]} Bf5 {[%emt 0:00:31]} 17. Nec3 {[%emt 0:05:24]} Rhd8 {[%emt 0:04:05]} 18. fxe5 {[%emt 0:00:34]} Nxe5 {[%emt 0:00:15]} 19. Nxe7 {[%emt 0:00:31]} Rxd1 {[%emt 0:01:55]} 20. Bxd1 {[%emt 0:00:04]} Kxe7 {[%emt 0:00:05]} 21. Nd5+ {[%emt 0:00:01]} Kd6 {[%emt 0:01:48]} 22. e4 {[%emt 0:00:23]} Bg4 {[%emt 0:00:28]} 23. Bxg4 {[%emt 0:01:33]} Nhxg4 {[%emt 0:00:28]} 24. h3 {[%emt 0:00:04]} Nd3 {[%emt 0:00:08]} 25. hxg4 {[%emt 0:00:17]} Nxb2 {[%emt 0:00:03]} 26. Rb1 {[%emt 0:00:09]} Re8 {[%emt 0:00:51]} 27. Rxb2 {[%emt 0:00:08]} Rxe4 {[%emt 0:00:02]} 28. Nxf6 {[%emt 0:00:03]} Rf4 {[%emt 0:00:02]} 29. Rf2 {[%emt 0:00:24] Kd5} 1-0